bitfinex-derivatives/quotes_SOLF0:USTF0_20251119
["timestamp","ask_amount","ask_price","bid_price","bid_amount"]
[1763589780349,0.0527212,134.96,134.94,22.3769]
[1763589781958,3.3627212,134.96,134.88,21.9280805]
[1763589782264,3.31,134.94,134.84,15.7]
[1763589782957,0.05586484,134.9,134.88,0.05345103]
[1763589783651,9.17965425,134.99,134.88,0.05345103]
[1763589783652,3.31,134.98,134.88,0.05345103]
[1763589783854,3.31,134.98,134.84,29.0639]
[1763589783855,8.90745253,134.97,134.84,15.7]
[1763589784055,5.59745253,134.96,134.84,15.7]
[1763589784360,3.31,134.96,134.92,6.678]
[1763589784560,3.31,134.96,134.84,119.6397]
[1763589784762,5.59602387,135.0,134.89,0.05440077]
[1763589784962,3.31,135.02,134.88,165.9104]
[1763589785263,8.90505546,135.01,134.98,6.6751]
[1763589785456,6.6722,135.04,134.9,13.3579]
[1763589785457,3.31,135.04,134.94,15.7]
[1763589785656,5.59640844,135.03,134.94,15.7]
[1763589785851,0.05080353,135.0,134.97,0.05507857]
[1763589786057,3.36406113,135.0,134.97,0.04861971]
[1763589787663,0.05406113,135.0,134.97,0.04861971]
[1763589788758,0.05406113,135.0,134.98,6.6751]
[1763589788960,0.05406113,135.0,134.97,0.04861971]
[1763589791367,3.14,135.07,134.97,0.04861971]
[1763589791571,5.60829461,135.06,134.95,29.0531]
[1763589791865,3.14,135.07,134.95,29.0531]
[1763589792066,3.14,135.05,134.95,29.0531]
[1763589792563,0.05081174,135.01,134.99,0.0488946]
[1763589792966,0.05081174,135.01,135.0,6.674]
[1763589793267,3.19081174,135.01,134.99,0.0488946]
[1763589794968,3.14,135.0,134.96,6.676]
[1763589795363,3.19081174,135.01,134.94,15.7]
[1763589795564,0.05081174,135.01,134.98,6.675]
[1763589795768,0.05081174,135.01,134.98,0.04862741]
[1763589796170,3.19081174,135.01,134.98,0.04862741]
[1763589797167,3.14,134.99,134.98,0.04862741]
[1763589800564,0.05081174,135.01,134.98,0.04862741]
[1763589801164,0.05081174,135.01,134.99,6.6746]
[1763589801966,5.63292549,135.05,135.03,6.6725]
[1763589802171,5.63292549,135.04,135.03,6.6725]
[1763589802467,3.14,135.06,134.97,13.3512]
[1763589802668,3.14,135.06,135.04,6.6721]
[1763589803069,3.1939131,135.06,135.04,6.72275426]
[1763589803271,0.0539131,135.06,135.04,6.72275426]
[1763589805583,3.14,135.12,135.09,6.6696]
[1763589805780,5.62802525,135.11,135.09,6.6696]
[1763589806071,3.04,135.07,134.99,6.6745]
[1763589806272,8.66990438,135.06,134.93,15.7]
[1763589806472,5.62990438,135.05,134.93,15.7]
[1763589806670,0.05226812,135.0,134.99,6.6747]
[1763589806870,5.62905625,135.05,134.94,13.3543]
[1763589807070,3.04,135.06,134.94,13.3543]
[1763589807271,3.04,135.06,134.93,141.7711]
[1763589807472,3.04,135.09,134.95,103.8582]
[1763589807666,5.62747264,135.08,134.96,103.8518]
[1763589807977,0.04893344,135.03,135.02,6.6732]
[1763589808180,0.05536703,135.04,135.01,15.74791859]
[1763589808563,0.05536703,135.04,135.02,6.6732]
[1763589814981,8.6554264,135.1,135.07,6.6705]
[1763589815181,3.04,135.1,135.07,6.6705]
[1763589815877,3.04,135.13,135.01,15.7]
[1763589816079,0.00335696,135.08,135.06,0.05286963]
[1763589816278,8.65240588,135.15,135.01,181.5085]
[1763589816584,3.04,135.15,135.11,6.6686]
[1763589816980,3.04,135.15,135.08,15.7]
[1763589817184,3.04,135.15,135.1,0.0567369]
[1763589817681,3.04,135.13,135.1,0.0567369]
[1763589818278,8.91603199,135.12,135.1,0.0567369]
[1763589818474,3.31,135.11,135.1,0.0567369]
[1763589819183,4.79,135.11,135.04,10.62]
[1763589819493,3.31,135.11,135.04,10.62]
[1763589819783,3.31,135.11,135.05,6.6715]
[1763589819989,3.31,135.11,135.04,10.62]
[1763589820190,0.04935936,135.09,135.06,0.04798571]
[1763589820485,3.35935936,135.09,135.06,0.04798571]
[1763589820790,0.04935936,135.09,135.06,0.04798571]
[1763589821189,0.04935936,135.09,135.07,6.6706]
[1763589822687,3.35935936,135.09,135.06,0.04798571]
[1763589822890,3.35935936,135.09,134.95,13.3531]
[1763589823089,3.31,135.09,134.96,15.68]
[1763589823393,3.31,135.07,134.96,15.68]
[1763589824092,0.04764202,135.03,135.0,0.04872226]
[1763589824688,0.04764202,135.03,135.01,6.6736]
[1763589824884,3.35764202,135.03,135.0,0.04872226]
[1763589828695,3.35764202,135.03,135.0,6.72272226]
[1763589829789,3.35764202,135.03,135.0,0.04872226]
[1763589830593,0.04764202,135.03,135.0,0.04872226]
[1763589830787,3.35764202,135.03,135.0,0.04872226]
[1763589830988,3.35764202,135.03,134.91,75.3563]
[1763589831295,3.31,135.01,134.96,6.6758]
[1763589832190,3.31,134.99,134.97,0.05220117]
[1763589833894,3.31,134.97,134.88,22.75035472]
[1763589834193,3.31,134.97,134.87,29.0408]
[1763589834596,3.31,134.97,134.92,6.6779]
[1763589834799,0.0535622,134.96,134.93,0.05055994]
[1763589835294,0.0535622,134.96,134.94,6.677]
[1763589837199,3.3635622,134.96,134.94,6.677]
[1763589837403,3.3635622,134.96,134.93,0.05055994]
[1763589838704,3.3635622,134.96,134.94,6.677]
[1763589839895,0.0535622,134.96,134.94,6.677]
[1763589840501,3.31,135.02,134.94,1.48]
[1763589840704,3.31,135.02,134.91,15.68]
[1763589841294,3.31,135.02,134.88,22.21312532]
[1763589841499,3.31,135.02,134.94,0.04957466]
[1763589842605,0.05381851,134.99,134.94,0.04957466]
[1763589843095,0.05381851,134.99,134.98,6.6752]
[1763589846302,3.31,135.03,135.01,6.6732]
[1763589846508,3.31,135.04,134.97,15.68]
[1763589847308,3.31,135.04,134.99,0.04719506]
[1763589847606,3.35281841,135.02,134.94,15.68]
[1763589847815,3.31,135.02,134.94,15.68]
[1763589848018,3.02,135.0,134.94,15.68]
[1763589848510,0.05403469,134.98,134.96,0.04692698]
[1763589848709,3.02,135.06,134.94,15.68]
[1763589849013,3.02,135.06,135.03,6.6726]
[1763589849519,3.02,135.06,135.04,6.6721]
[1763589849706,3.02,135.06,135.03,0.04685857]
[1763589849707,0.03597878,135.06,135.03,0.04685857]
[1763589849909,0.03597878,135.06,135.03,15.72675477]
[1763589850804,0.03597878,135.06,135.04,6.6722]
[1763589852816,3.02,135.13,135.09,6.6695]
[1763589853913,3.02,135.11,135.03,15.68]
[1763589854320,3.02,135.11,135.04,6.6719]
[1763589854618,3.02,135.11,135.03,15.68]
[1763589854813,0.05135076,135.08,135.06,0.04737495]
[1763589856714,3.07135076,135.08,135.06,6.71847495]
[1763589857219,3.07135076,135.08,135.06,0.04737495]
[1763589857811,0.05135076,135.08,135.06,0.04737495]
[1763589858114,3.07135076,135.08,135.06,0.04737495]
[1763589858614,0.05135076,135.08,135.06,0.04737495]
[1763589858915,0.05135076,135.08,135.06,6.71837495]
[1763589860816,3.02,135.15,135.09,6.6693]
[1763589861015,3.02,135.15,135.0,119.4974]
[1763589861322,3.02,135.15,135.03,13.3454]
[1763589861820,3.02,135.15,135.08,0.04734659]
[1763589863316,3.02,135.18,135.08,0.04734659]
[1763589863510,3.02,135.18,135.07,15.68]
[1763589863511,3.02,135.18,135.12,0.05565537]
[1763589863920,3.02,135.18,135.14,6.6671]
[1763589864318,3.02,135.18,135.12,0.05565537]
[1763589864529,3.02,135.18,135.15,6.6667]
[1763589864822,3.02,135.18,135.15,0.04966005]
[1763589865023,3.02,135.17,135.15,0.04966005]
[1763589873825,22.2,135.25,135.15,6.71616005]
[1763589873826,3.29,135.2,135.15,6.71616005]
[1763589874129,3.29,135.2,135.16,0.04688324]
[1763589875320,3.29,135.2,135.16,6.71308324]
[1763589875627,3.29,135.2,135.16,0.04688324]
[1763589876027,3.29,135.23,135.19,6.6647]
[1763589876237,3.29,135.23,135.2,0.05000131]
[1763589876724,3.29,135.23,135.11,35.85747708]
[1763589876930,3.29,135.19,135.13,6.6673]
[1763589877124,3.29,135.19,135.11,35.85747708]
[1763589877732,0.05000131,135.16,135.14,0.04716557]
[1763589878630,0.05000131,135.16,135.14,6.71436557]
[1763589880034,0.05000131,135.16,135.15,6.6668]
[1763589881040,0.05000131,135.16,135.14,0.04716557]
[1763589883928,3.18000131,135.16,135.14,0.04716557]
[1763589885733,3.18000131,135.16,135.14,6.71436557]
[1763589886336,3.18000131,135.16,135.14,0.04716557]
[1763589887437,5.61906481,135.15,134.99,62.0]
[1763589887627,3.13,135.13,135.0,15.64]
[1763589887823,5.61906481,135.14,135.0,15.64]
[1763589887824,3.13,135.11,135.07,6.6706]
[1763589888023,3.13,135.11,135.01,13.3473]
[1763589888533,0.05370078,135.07,135.05,6.71933962]
[1763589890038,3.18370078,135.07,135.05,0.04803962]
[1763589890433,3.18370078,135.07,135.02,6.6731]
[1763589890933,3.13,135.05,135.02,6.6731]
[1763589891533,3.13,135.05,135.02,6.72667796]
[1763589895242,3.13,135.05,135.02,0.05357796]
[1763589895934,3.13,135.05,135.02,6.72667796]
[1763589896337,3.13,135.05,135.02,0.05357796]
[1763589897745,3.13,135.05,135.02,6.72667796]
[1763589898041,3.18370078,135.07,135.02,0.05357796]
[1763589899634,3.18370078,135.07,135.04,6.6721]
[1763589900236,0.05370078,135.07,135.04,6.6721]
[1763589900431,0.05370078,135.07,135.05,6.6716]
[1763589901234,13.7141632,135.16,135.05,6.6716]
[1763589901235,5.62422681,135.12,135.05,1.48]
[1763589901433,3.13,135.16,135.03,22.23]
[1763589901639,3.13,135.16,135.03,13.3449]
[1763589901841,8.74923368,135.15,135.02,103.8043]
[1763589902047,3.13,135.18,135.03,103.7968]
[1763589902233,0.04970117,135.12,135.09,0.05197946]
[1763589902435,0.04970117,135.12,135.09,15.69197946]
[1763589902949,0.04970117,135.12,135.1,6.6691]
[1763589903650,0.04970117,135.12,135.09,15.69197946]
[1763589904350,0.04970117,135.12,135.09,22.36157946]
[1763589904741,0.04970117,135.12,135.09,15.69197946]
[1763589904942,0.04970117,135.12,135.1,6.6691]
[1763589908243,0.04970117,135.12,135.09,0.05197946]
[1763589908244,3.16970117,135.12,135.09,0.05197946]
[1763589910155,3.12,135.11,135.04,6.6719]
[1763589910354,3.12,135.11,135.01,8.88]
[1763589911154,0.04951415,135.07,135.06,6.6708]
[1763589911352,0.05542592,135.08,135.06,6.6708]
[1763589912544,3.12,135.14,135.05,0.05563379]
[1763589912752,3.12,135.14,135.03,13.3448]
[1763589913056,3.12,135.14,135.09,6.6696]
[1763589913443,3.12,135.14,135.1,0.04804553]
[1763589913752,6.6659,135.17,135.1,0.04804553]
[1763589913753,3.17652838,135.13,135.1,0.04804553]
[1763589915450,3.17652838,135.13,135.1,6.71714553]
[1763589916556,3.17652838,135.13,135.1,0.04804553]
[1763589918255,3.17652838,135.13,134.99,35.07521749]
[1763589918256,3.12,135.1,134.99,35.07521749]
[1763589918459,3.12,135.1,134.99,13.3484]
[1763589918758,3.12,135.08,134.98,104.46]
[1763589919161,0.05206195,135.04,135.02,6.72657663]
[1763589920360,0.05206195,135.04,135.02,8.20657663]
[1763589921658,0.05206195,135.04,135.02,6.72657663]
[1763589923269,3.17206195,135.04,135.02,6.72657663]
[1763589923562,3.17206195,135.04,135.02,0.05377663]
[1763589923761,4.65206195,135.04,134.9,13.3575]
[1763589923966,3.12,135.02,134.96,6.6757]
[1763589924664,0.05665554,135.0,134.98,0.05093392]
[1763589924963,0.05665554,135.0,134.98,0.05445179]
[1763589925563,0.05665554,135.0,134.98,6.72955179]
[1763589926063,3.20665554,135.0,134.98,6.72955179]
[1763589928359,0.05665554,135.0,134.98,6.72955179]
[1763589928556,3.20665554,135.0,134.98,0.05445179]
[1763589928761,0.05665554,135.0,134.98,0.05445179]
[1763589929057,3.20665554,135.0,134.98,0.05445179]
[1763589929367,3.20665554,135.0,134.95,6.6762]
[1763589930365,3.20665554,135.0,134.96,0.05504043]
[1763589931067,3.15,134.98,134.96,0.05504043]
[1763589931260,3.15,134.98,134.93,6.6773]
[1763589931261,3.15,134.96,134.85,13.3625]
[1763589931461,3.15,134.96,134.85,24.7625]
[1763589931863,3.15,134.96,134.86,23.31795011]
[1763589932159,0.04690064,134.92,134.9,0.05361568]
[1763589932367,3.15,134.91,134.86,7.96955025]
[1763589932670,3.15,134.9,134.86,7.96955025]
[1763589933370,3.15,134.9,134.87,0.0550736]
[1763589935265,3.15,134.9,134.83,1.2904422]
[1763589935266,3.15,134.89,134.83,1.2904422]
[1763589936267,3.15,134.86,134.85,0.0480849]
[1763589936472,3.15,134.86,134.83,1.2904422]
[1763589936872,0.05570345,134.87,134.83,1.2904422]
[1763589937580,0.05570345,134.87,134.85,6.6814]
[1763589938379,3.26570345,134.87,134.84,0.05530074]
[1763589940073,0.05570345,134.87,134.84,0.05530074]
[1763589940677,0.05570345,134.87,134.85,6.6814]
[1763589943176,3.26570345,134.87,134.84,0.05530074]
[1763589946981,3.26570345,134.87,134.8,1.29051398]
[1763589947880,3.21,134.85,134.76,10.54]
[1763589948081,3.21,134.85,134.76,1.29104062]
[1763589948992,3.26237622,134.82,134.79,6.73955709]
[1763589949688,3.26237622,134.82,134.79,0.05505709]
[1763589949880,0.05237622,134.82,134.79,0.05505709]
[1763589950288,3.26237622,134.82,134.79,0.05505709]
[1763589957697,3.26237622,134.82,134.79,6.73955709]
[1763589958389,3.26237622,134.82,134.79,0.05505709]
[1763589958897,3.21,134.8,134.76,1.29104062]
[1763589959088,3.21,134.8,134.67,88.9]
[1763589959288,3.21,134.78,134.71,1.29151976]
[1763589959995,0.05206525,134.76,134.73,0.0504672]
[1763589961383,3.26206525,134.76,134.73,0.0504672]
[1763589961888,0.05206525,134.76,134.74,6.6866]
[1763589962389,3.26206525,134.76,134.74,6.6866]
[1763589962993,0.05206525,134.76,134.74,6.6866]
[1763589963596,9.17965425,134.86,134.79,6.6846]
[1763589963597,3.21,134.83,134.79,6.6846]
[1763589963792,8.80773038,134.82,134.75,15.68]
[1763589963989,10.0024466,134.85,134.75,15.68]
[1763589964194,3.21,134.83,134.75,15.68]
[1763589964598,3.21,134.86,134.75,15.68]
[1763589964799,0.05147206,134.8,134.78,0.05588076]
[1763589965001,0.04975869,134.8,134.78,0.05588076]
[1763589965194,0.04975869,134.8,134.79,6.6846]
[1763589966896,3.25975869,134.8,134.78,0.05588076]
[1763589967597,3.25975869,134.8,134.78,6.74088076]
[1763589968588,0.04975869,134.8,134.78,6.74088076]
[1763589969498,8.81809902,134.79,134.78,0.05588076]
[1763589969697,3.2,134.78,134.71,11.45151976]
[1763589969899,5.62002196,134.77,134.71,11.45151976]
[1763589970099,3.2,134.78,134.74,6.6869]
[1763589970301,8.82460083,134.77,134.74,6.6869]
[1763589970502,3.2,134.77,134.74,6.6869]
[1763589970700,3.25075838,134.77,134.74,6.73814148]
[1763589970993,3.25075838,134.77,134.75,6.6864]
[1763589971195,3.25075838,134.77,134.74,0.05124148]
[1763589971401,5.62641418,134.76,134.74,6.73814148]
[1763589971704,3.25075838,134.77,134.74,6.73814148]
[1763589971898,5.6261264,134.76,134.74,6.73814148]
[1763589972099,3.25075838,134.77,134.74,6.73814148]
[1763589972301,5.62093709,134.76,134.74,6.73814148]
[1763589972606,3.25075838,134.77,134.75,6.6865]
[1763589972797,0.05075838,134.77,134.75,6.6865]
[1763589975209,5.62578274,134.76,134.75,6.6865]
[1763589975803,5.62578274,134.76,134.74,0.05124148]
[1763589976006,5.62578274,134.75,134.74,0.05124148]
[1763589976600,8.82578274,134.75,134.74,0.05124148]
[1763589976808,5.62578274,134.75,134.74,0.05124148]
[1763589977412,5.63457955,134.75,134.74,6.73814148]
[1763589977810,0.05075838,134.77,134.74,0.05124148]
[1763589978006,0.05075838,134.77,134.76,6.686]
[1763589978206,5.68381692,134.77,134.76,6.686]
[1763589979708,8.88381692,134.77,134.74,0.05124148]
[1763589979910,5.63305854,134.76,134.74,0.05124148]
[1763589980115,0.05075838,134.77,134.74,0.05124148]
[1763589980410,0.05075838,134.77,134.75,6.6865]
[1763589982804,0.05075838,134.77,134.76,6.686]
[1763589983013,15.86205425,134.84,134.74,0.05124148]
[1763589983208,12.34093562,134.83,134.76,6.6857]
[1763589983403,5.65833562,134.82,134.71,11.45151976]
[1763589983601,5.65833562,134.81,134.71,11.45151976]
[1763589983814,9.17965425,134.86,134.71,11.45151976]
[1763589984116,0.04890324,134.8,134.77,0.05191823]
[1763589984312,0.04707822,134.8,134.77,0.05500713]
[1763589984908,0.04707822,134.8,134.79,6.6846]
[1763589985921,8.74427607,134.8,134.77,6.74010713]
[1763589986113,3.11707822,134.8,134.77,0.05500713]
[1763589987017,3.07,134.78,134.77,0.05500713]
[1763589987816,8.71162337,134.78,134.77,0.05500713]
[1763589988408,3.07,134.78,134.77,0.05500713]
[1763589989220,8.70508945,134.78,134.77,0.05500713]
[1763589989724,3.07,134.77,134.72,6.6875]
[1763589990016,3.07,134.77,134.71,1.29151976]
[1763589990516,0.04964084,134.75,134.73,0.05202005]
[1763589990707,3.07,134.79,134.71,1.29151976]
[1763589990912,0.05513657,134.75,134.74,0.05371506]
[1763589991108,0.05451258,134.76,134.75,6.6864]
[1763589996020,3.07,134.84,134.75,1.48]
[1763589996323,5.65013047,134.83,134.76,15.68]
[1763589996625,3.07,134.84,134.76,15.68]
[1763589996916,0.055263,134.81,134.79,0.0508213]
[1763589997124,0.055263,134.81,134.8,6.6838]
[1763590003032,12.09,134.91,134.79,0.0508213]
[1763590003216,8.6718801,134.9,134.76,15.68]
[1763590003416,5.6218801,134.89,134.76,15.68]
[1763590003616,3.05,134.9,134.76,15.68]
[1763590003812,5.61322404,134.89,134.79,103.9823]
[1763590004118,3.05,134.93,134.83,0.05428856]
[1763590004312,3.05,134.93,134.84,15.68]
[1763590004716,3.05,134.97,134.84,15.68]
[1763590004929,5.61157138,134.96,134.84,15.68]
[1763590005112,3.05,134.97,134.84,15.68]
[1763590005425,3.05,134.97,134.89,0.052523]
[1763590005625,3.05,134.97,134.9,15.66]
[1763590006025,3.05,134.97,134.94,6.677]
[1763590006222,3.05,134.97,134.9,15.66]
[1763590006223,3.05,134.98,134.9,38.3215928]
[1763590006428,0.04897689,134.95,134.93,0.0537088]
[1763590007829,0.04897689,134.95,134.93,6.7312088]
[1763590008323,3.09897689,134.95,134.93,15.7137088]
[1763590009330,0.04897689,134.95,134.93,15.7137088]
[1763590009524,0.04897689,134.95,134.93,22.3910088]
[1763590012525,3.05,135.0,134.96,6.6759]
[1763590013632,0.05514544,134.99,134.97,0.05299501]
[1763590014029,3.10514544,134.99,134.97,0.05299501]
[1763590016831,0.05514544,134.99,134.97,0.05299501]
[1763590017035,0.05514544,134.99,134.97,6.72849501]
[1763590018423,0.05514544,134.99,134.97,0.05299501]
[1763590018424,3.10514544,134.99,134.97,0.05299501]
[1763590018724,0.05514544,134.99,134.97,0.05299501]
[1763590018923,0.05514544,134.99,134.97,6.72849501]
[1763590021140,0.05514544,134.99,134.97,0.05299501]
[1763590022043,0.05514544,134.99,134.97,6.72849501]
[1763590025041,3.10514544,134.99,134.97,0.05299501]
[1763590025242,0.05514544,134.99,134.97,0.05299501]
[1763590026746,0.05514544,134.99,134.97,6.72849501]
[1763590029350,3.09514544,134.99,134.97,6.72849501]
[1763590029748,3.09514544,134.99,134.97,0.05299501]
[1763590030151,0.05514544,134.99,134.97,0.05299501]
[1763590030752,0.05514544,134.99,134.97,6.72859501]
[1763590031248,3.09514544,134.99,134.97,0.05299501]
[1763590031449,5.86243772,134.99,134.97,0.05299501]
[1763590033248,3.04,134.98,134.97,0.05299501]
[1763590033562,3.04,134.98,134.91,15.64]
[1763590033858,3.04,134.96,134.91,15.64]
[1763590034156,3.04,134.96,134.93,6.6775]
[1763590034555,3.08746566,134.96,134.93,6.72967148]
[1763590034751,3.08746566,134.96,134.93,0.05217148]
[1763590034952,3.04,135.0,134.94,2.76729228]
[1763590035158,5.80729228,135.03,134.96,2.76729228]
[1763590035360,5.80729228,135.03,135.0,6.6741]
[1763590035656,3.04,135.02,135.0,6.6741]
[1763590036055,3.08894927,135.02,135.0,6.72097101]
[1763590036454,3.08894927,135.02,135.0,0.04687101]
[1763590040261,3.08894927,135.02,135.0,6.72087101]
[1763590042070,0.04894927,135.02,135.01,6.6737]
[1763590042562,3.04,135.01,134.86,22.31874891]
[1763590042765,3.04,134.95,134.88,2.76729228]
[1763590043454,5.80729228,134.92,134.86,14.18]
[1763590043662,0.04881537,134.9,134.88,0.05309422]
[1763590044758,0.04881537,134.9,134.88,6.73299422]
[1763590046463,10.15259936,134.98,134.88,1.53309422]
[1763590046662,8.93371554,134.97,134.87,6.59967204]
[1763590046967,3.33,134.96,134.94,6.677]
[1763590047365,3.33,134.96,134.94,6.72923422]
[1763590047366,3.38645005,134.96,134.94,6.72923422]
[1763590048563,3.38645005,134.96,134.94,0.05223422]
[1763590050259,3.38645005,134.96,134.94,6.72923422]
[1763590050457,3.38645005,134.96,134.94,0.05223422]
[1763590051669,3.38645005,134.96,134.94,6.72923422]
[1763590051874,0.05645005,134.96,134.94,6.72923422]
[1763590054476,3.38645005,134.96,134.94,0.05223422]
[1763590054778,3.38645005,134.96,134.87,6.59967204]
[1763590054779,3.38645005,134.96,134.85,13.3624]
[1763590055076,6.59967204,134.98,134.9,6.59967204]
[1763590055077,3.33,134.98,134.9,6.59967204]
[1763590055273,3.33,135.01,134.9,103.8977]
[1763590055474,3.33,135.01,134.93,6.59967204]
[1763590055680,13.14,135.04,134.94,15.64]
[1763590055871,3.37994289,135.0,134.98,0.04712726]
[1763590056072,3.37994289,135.0,134.98,6.72222726]
[1763590057378,3.37994289,135.0,134.98,0.04712726]
[1763590060383,0.04994289,135.0,134.98,6.72212726]
[1763590064190,0.04994289,135.0,134.98,29.45482195]
[1763590064376,0.04994289,135.0,134.98,6.72212726]
[1763590064582,12.88,135.04,135.03,6.6727]
[1763590064786,9.81,135.04,135.03,6.6727]
[1763590064986,3.07,135.07,135.03,6.6727]
[1763590065688,3.11886319,135.06,135.04,0.05480792]
[1763590066788,5.88485927,135.06,135.04,0.05480792]
[1763590066993,3.07,135.05,134.93,13.3548]
[1763590067188,5.83599608,135.02,134.94,18.40599608]
[1763590068003,0.05621735,134.99,134.97,0.04988694]
[1763590069689,3.12621735,134.99,134.97,0.04988694]
[1763590070692,0.05621735,134.99,134.97,0.04988694]
[1763590072196,0.05621735,134.99,134.97,6.72548694]
[1763590074193,3.12621735,134.99,134.97,6.72548694]
[1763590074394,0.05621735,134.99,134.97,6.72548694]
[1763590074587,3.07,135.03,135.01,6.6736]
[1763590075696,3.1200202,135.03,135.01,6.72957955]
[1763590076097,0.0500202,135.03,135.01,6.72957955]
[1763590076296,0.0500202,135.03,135.02,15.64]
[1763590080698,0.0500202,135.03,135.01,0.05597955]
[1763590080898,3.1200202,135.03,135.01,0.05597955]
[1763590083196,3.1200202,135.03,135.01,6.72947955]
[1763590083796,0.0500202,135.03,135.01,6.72947955]
[1763590085300,0.0500202,135.03,135.01,15.69597955]
[1763590086895,0.0500202,135.03,135.01,22.36957955]
[1763590087098,3.07,135.07,135.01,0.05597955]
[1763590088108,3.2,135.04,135.01,0.05597955]
[1763590089400,3.2,135.04,135.01,6.72947955]
[1763590089698,3.2,135.04,135.01,0.05597955]
[1763590089908,3.2,135.04,135.02,6.6731]
[1763590091393,3.25382644,135.05,135.03,6.6724]
[1763590092299,0.05382644,135.05,135.03,6.6724]
[1763590093810,3.2,135.11,135.03,4.3222642]
[1763590094108,3.2,135.11,135.05,4.3222642]
[1763590094294,7.13,135.13,135.05,4.3222642]
[1763590094494,8.77972278,135.12,135.1,6.6691]
[1763590094701,3.24843839,135.12,135.1,6.71726596]
[1763590094902,0.04843839,135.12,135.1,6.71726596]
[1763590097307,3.24843839,135.12,135.1,0.04816596]
[1763590097815,3.24843839,135.12,135.09,6.6696]
[1763590098000,3.2,135.12,135.05,9.7]
[1763590098308,3.2,135.12,135.05,6.6714]
[1763590098500,3.2,135.1,135.05,6.6714]
[1763590098999,3.2,135.08,135.0,9.66]
[1763590100211,0.05334665,135.05,135.03,0.04774919]
[1763590100397,0.05334665,135.05,135.03,6.72004919]
[1763590100908,3.25334665,135.05,135.03,0.04774919]
[1763590109808,3.25334665,135.05,135.0,6.6741]
[1763590110112,3.25334665,135.05,134.95,15.64]
[1763590110304,3.2,135.05,134.95,15.64]
[1763590110511,3.2,135.05,135.02,6.6731]
[1763590110808,3.25221439,135.05,135.02,6.72166681]
[1763590111214,0.05221439,135.05,135.03,6.6726]
[1763590111907,3.20221439,135.05,135.03,6.6726]
[1763590113700,0.05221439,135.05,135.03,6.6726]
[1763590113901,0.00221439,135.05,135.03,6.6726]
[1763590114107,3.15,135.12,135.09,6.6695]
[1763590114607,3.15,135.12,135.1,6.6689]
[1763590115216,3.20283951,135.12,135.1,6.72067522]
[1763590115408,0.05283951,135.12,135.1,6.72067522]
[1763590118211,0.05283951,135.12,135.1,22.34067522]
[1763590120212,3.18,135.17,135.14,6.6669]
[1763590120711,9.16,135.18,135.15,6.6666]
[1763590120907,12.34,135.18,135.1,15.62]
[1763590121419,0.0554018,135.15,135.13,0.04790834]
[1763590121617,9.16,135.18,135.13,0.04790834]
[1763590121823,9.16,135.18,135.16,6.6659]
[1763590122415,9.1,135.21,135.19,6.6643]
[1763590122724,9.14828921,135.21,135.19,22.33555853]
[1763590123021,0.04828921,135.21,135.19,22.33555853]
[1763590123809,3.22828921,135.21,135.19,0.05125853]
[1763590127212,3.18,135.2,135.07,10.30633586]
[1763590127426,3.18,135.2,135.08,15.62]
[1763590128127,3.18,135.2,135.15,6.6666]
[1763590128325,3.18,135.18,135.16,0.05617515]
[1763590128722,0.05503758,135.19,135.16,0.05617515]
[1763590129325,0.05503758,135.19,135.17,6.6656]
[1763590129519,3.18,135.24,135.16,15.67617515]
[1763590130228,3.18,135.24,135.17,15.62]
[1763590130928,3.18,135.21,135.19,0.04970948]
[1763590132125,0.04952821,135.22,135.19,0.04970948]
[1763590132523,0.04952821,135.22,135.19,6.71420948]
[1763590132829,3.22952821,135.22,135.19,6.71420948]
[1763590133327,3.22952821,135.22,135.19,0.04970948]
[1763590135933,3.22952821,135.22,135.09,10.30633586]
[1763590136132,3.18,135.22,135.1,13.0]
[1763590136530,3.18,135.22,135.16,6.6661]
[1763590137030,3.18,135.19,135.18,0.04689078]
[1763590137228,3.18,135.19,135.16,6.6661]
[1763590138126,3.18,135.19,135.16,6.71680403]
[1763590138326,3.18,135.19,135.16,0.05070403]